bitfinex-derivatives/quotes_BTCF0:USTF0_20220103
["timestamp","ask_amount","ask_price","bid_price","bid_amount"]
[1641229300187,0.18,46468.0,46458.0,1.9189]
[1641229300385,0.18,46465.0,46458.0,1.9189]
[1641229300586,0.14033567,46465.0,46460.0,0.60270788]
[1641229301687,0.31833567,46465.0,46457.0,1.21306499]
[1641229302290,0.31833567,46465.0,46462.0,0.02152406]
[1641229302291,0.178,46465.0,46462.0,0.02152406]
[1641229302491,0.178,46465.0,46464.0,0.18]
[1641229302691,0.178,46465.0,46464.0,0.32033567]
[1641229302906,0.14033567,46477.0,46464.0,0.34185866]
[1641229303693,0.32033567,46477.0,46464.0,0.34185866]
[1641229303896,0.32033567,46477.0,46467.0,0.02152176]
[1641229304695,0.32033567,46477.0,46470.0,0.14033567]
[1641229304895,0.14033567,46477.0,46470.0,0.14033567]
[1641229305694,0.31933567,46477.0,46470.0,0.14033567]
[1641229306994,0.14033567,46477.0,46470.0,0.14033567]
[1641229307594,0.31933567,46477.0,46470.0,0.14033567]
[1641229307995,0.31933567,46477.0,46464.0,0.16185866]
[1641229307996,0.18,46471.0,46464.0,0.14033567]
[1641229308194,1.312,46474.0,46464.0,0.14033567]
[1641229308394,0.43039514,46469.0,46464.0,0.14033567]
[1641229309295,0.4304047,46468.0,46464.0,0.14033567]
[1641229310096,0.177,46469.0,46464.0,0.14033567]
[1641229310299,0.177,46469.0,46464.0,0.22835567]
[1641229311215,0.34186062,46477.0,46464.0,0.22835567]
[1641229311611,0.192,46469.0,46464.0,0.22835567]
[1641229312411,0.84929367,46466.0,46464.0,0.22835567]
[1641229313611,1.03629367,46466.0,46464.0,0.22835567]
[1641229314112,0.187,46466.0,46464.0,0.22835567]
[1641229314912,0.14033567,46477.0,46464.0,0.22835567]
[1641229315713,0.12146455,46476.0,46464.0,0.22835567]
[1641229316915,0.4303462,46475.0,46464.0,0.22835567]
[1641229317617,0.6223462,46475.0,46464.0,0.22835567]
[1641229318016,0.12146527,46474.0,46464.0,0.22835567]
[1641229319520,0.43036009,46473.0,46464.0,0.14033567]
[1641229319921,0.49538009,46473.0,46464.0,0.14033567]
[1641229320120,1.21341708,46468.0,46464.0,0.14033567]
[1641229321621,1.40941708,46468.0,46464.0,0.14033567]
[1641229322428,1.21341708,46467.0,46464.0,0.14033567]
[1641229323725,1.41041708,46467.0,46464.0,0.14033567]
[1641229324928,0.43036009,46473.0,46464.0,0.14033567]
[1641229324929,1.21341708,46466.0,46464.0,0.14033567]
[1641229325628,1.37941708,46466.0,46464.0,0.14033567]
[1641229326936,1.21341708,46466.0,46464.0,0.14033567]
[1641229327435,0.43036009,46473.0,46464.0,0.14033567]
[1641229327634,0.198,46466.0,46464.0,0.14033567]
[1641229327835,0.27705,46466.0,46464.0,0.14033567]
[1641229329036,0.07905,46466.0,46464.0,0.14033567]
[1641229329439,0.43036009,46473.0,46464.0,0.14033567]
[1641229329637,0.189,46466.0,46464.0,0.14033567]
[1641229330538,0.27528,46466.0,46464.0,0.14033567]
[1641229331037,0.08628,46466.0,46464.0,0.14033567]
[1641229331738,0.27528,46466.0,46464.0,0.14033567]
[1641229333237,0.08628,46466.0,46464.0,0.14033567]
[1641229333439,0.43036009,46473.0,46464.0,0.14033567]
[1641229333839,0.19,46466.0,46464.0,0.14033567]
[1641229335239,0.43036009,46473.0,46464.0,0.14033567]
[1641229335939,0.12147538,46472.0,46464.0,0.14033567]
[1641229336139,0.30147538,46472.0,46464.0,0.14033567]
[1641229336340,0.12147538,46472.0,46464.0,0.14033567]
[1641229336542,0.12147538,46471.0,46464.0,0.14033567]
[1641229336941,0.12147538,46472.0,46464.0,0.14033567]
[1641229337742,0.31447538,46472.0,46464.0,0.14033567]
[1641229338143,0.12147538,46471.0,46464.0,0.14033567]
[1641229339447,0.12147538,46472.0,46464.0,0.14033567]
[1641229339645,0.43036009,46473.0,46464.0,0.14033567]
[1641229339845,0.30647435,46471.0,46464.0,0.14033567]
[1641229340148,0.185,46471.0,46464.0,0.14033567]
[1641229340345,0.12147691,46470.0,46464.0,0.14033567]
[1641229340546,0.185,46471.0,46464.0,0.14033567]
[1641229340746,0.185,46471.0,46464.0,0.21634567]
[1641229341646,0.185,46471.0,46464.0,0.81921497]
[1641229341846,0.374,46471.0,46464.0,0.81921497]
[1641229343853,0.189,46471.0,46464.0,0.81921497]
[1641229344154,0.189,46471.0,46465.0,1.287492]
[1641229344755,0.189,46471.0,46465.0,0.6028693]
[1641229345054,0.43036009,46473.0,46465.0,0.6028693]
[1641229345754,0.62136009,46473.0,46465.0,0.6028693]
[1641229346756,0.12147104,46472.0,46465.0,0.6028693]
[1641229347758,0.31247104,46472.0,46465.0,0.6028693]
[1641229348157,0.12147104,46471.0,46464.0,0.74320497]
[1641229349157,0.12147104,46471.0,46464.0,0.14033567]
[1641229349557,0.12147104,46471.0,46466.0,0.02152233]
[1641229349758,0.19,46471.0,46466.0,0.08668233]
[1641229350961,0.12147455,46470.0,46466.0,0.08668233]
[1641229351358,0.43036009,46473.0,46466.0,0.08668233]
[1641229351558,0.43036009,46473.0,46466.0,0.02152233]
[1641229351759,0.187,46470.0,46466.0,0.02152233]
[1641229353071,0.12,46467.0,46464.0,0.14033567]
[1641229353274,0.49043375,46465.0,46463.0,0.6028693]
[1641229353869,0.67543375,46465.0,46463.0,0.6028693]
[1641229354070,0.67543375,46465.0,46461.0,0.84358587]
[1641229354071,0.67543375,46465.0,46462.0,0.6028693]
[1641229354269,0.12149177,46464.0,46462.0,0.6028693]
[1641229354469,0.12,46463.0,46462.0,0.6028693]
[1641229355069,0.24149177,46463.0,46462.0,0.6028693]
[1641229355270,0.24149177,46463.0,46457.0,0.74320497]
[1641229355472,0.06,46462.0,46457.0,0.74320497]
[1641229356172,0.06,46462.0,46457.0,0.14033567]
[1641229356471,0.43048448,46460.0,46457.0,0.14033567]
[1641229356672,0.51368448,46460.0,46457.0,0.14033567]
[1641229357272,0.0832,46460.0,46457.0,0.14033567]
[1641229357870,0.183,46460.0,46457.0,0.14033567]
[1641229358571,0.183,46460.0,46459.0,0.12]
[1641229358772,0.183,46460.0,46459.0,0.18]
[1641229358972,0.183,46460.0,46458.0,1.2941007]
[1641229359180,0.14033567,46465.0,46458.0,1.2941007]
[1641229359581,0.14409677,46472.0,46462.0,0.20152414]
[1641229359781,0.14033567,46474.0,46465.0,0.18]
[1641229359980,0.14033567,46474.0,46466.0,0.02152208]
[1641229360381,0.001,46469.0,46467.0,0.18]
[1641229360586,0.001,46468.0,46466.0,0.02152208]
[1641229360781,0.001,46467.0,46466.0,0.02152208]
[1641229360981,0.12147286,46473.0,46466.0,0.02152208]
[1641229361182,0.12147286,46473.0,46468.0,0.14033567]
[1641229361581,0.12147286,46474.0,46468.0,0.14033567]
[1641229361783,0.186,46473.0,46468.0,0.14033567]
[1641229361986,0.001,46469.0,46468.0,0.14033567]
[1641229362183,0.12147286,46472.0,46468.0,0.14033567]
[1641229362384,0.186,46473.0,46468.0,0.14033567]
[1641229362586,0.186,46473.0,46469.0,0.189794]
[1641229363087,0.0323,46478.0,46470.0,0.14033567]
[1641229363488,0.12146769,46477.0,46470.0,0.14033567]
[1641229363687,6.769e-05,46477.0,46473.0,0.18]
[1641229363887,0.19500001,46478.0,46476.0,0.18]
[1641229364087,0.19500001,46478.0,46476.0,0.20151747]
[1641229364287,0.195,46478.0,46476.0,0.20151747]
[1641229364888,0.14409677,46484.0,46476.0,0.20151747]
[1641229365088,0.14409677,46484.0,46483.0,0.28067134]
[1641229365389,1.8652023,46495.0,46483.0,0.35000134]
[1641229365590,0.18,46493.0,46483.0,0.35000134]
[1641229365788,1.8652023,46495.0,46483.0,0.54000134]
[1641229366489,0.18,46489.0,46483.0,0.54000134]
[1641229366688,0.001,46484.0,46483.0,0.54000134]
[1641229366888,0.35233567,46495.0,46483.0,0.54000134]
[1641229367089,0.17233567,46495.0,46483.0,0.54000134]
[1641229367688,0.17233567,46495.0,46483.0,0.35000134]
[1641229367889,0.17233567,46495.0,46483.0,0.54800134]
[1641229368191,0.14033567,46495.0,46486.0,0.02151294]
[1641229369792,0.14033567,46495.0,46486.0,0.20551294]
[1641229371296,0.14033567,46495.0,46486.0,0.02151294]
[1641229371896,0.14033567,46495.0,46490.0,0.02151096]
[1641229372095,0.0001,46500.0,46491.0,0.009794]
[1641229373098,0.0001,46500.0,46494.0,0.02150919]
[1641229373299,0.0001,46500.0,46494.0,0.11698919]
[1641229373699,0.0001,46500.0,46496.0,0.18]
[1641229374099,0.0001,46500.0,46497.0,0.330972]
[1641229374301,0.0001,46500.0,46499.0,0.20150603]
[1641229374699,0.0001,46500.0,46499.0,0.02150603]
[1641229375302,0.0001,46500.0,46499.0,0.1618417]
[1641229375900,0.0001,46500.0,46499.0,0.3588417]
[1641229377103,0.0001,46500.0,46499.0,0.1618417]
[1641229377502,0.0001,46500.0,46499.0,0.22353023]
[1641229377703,1.69286663,46515.0,46499.0,0.54654323]
[1641229377902,1.69286663,46515.0,46503.0,0.18]
[1641229378100,1.69286663,46515.0,46504.0,0.009794]
[1641229378301,1.69286663,46515.0,46504.0,0.32816]
[1641229378502,1.69286663,46515.0,46509.0,0.02150219]
[1641229378707,0.0001,46520.0,46514.0,0.18]
[1641229378904,0.0001,46520.0,46514.0,0.20149993]
[1641229379106,0.0001,46520.0,46515.0,0.005366]
[1641229379305,0.0001,46520.0,46519.0,0.14033567]
[1641229379507,0.0001,46520.0,46519.0,0.21077567]
[1641229379907,0.02160522,46520.0,46519.0,0.18907567]
[1641229380108,0.02160522,46520.0,46503.0,0.02150522]
[1641229380309,0.07526,46520.0,46506.0,0.02150344]
[1641229381109,0.07526,46520.0,46512.0,0.02150074]
[1641229381313,0.14033567,46519.0,46517.0,0.02149868]
[1641229381909,0.33433567,46519.0,46517.0,0.02149868]
[1641229382510,0.194,46519.0,46517.0,0.02149868]
[1641229383111,0.0001,46520.0,46517.0,0.02149868]
[1641229383311,0.0001,46520.0,46515.0,0.14033567]
[1641229383511,0.0001,46520.0,46519.0,0.02149663]
[1641229383911,0.1601,46520.0,46519.0,0.20149663]
[1641229384110,0.1601,46520.0,46519.0,0.18]
[1641229384309,0.1601,46520.0,46519.0,0.20149443]
[1641229384710,0.1601,46520.0,46519.0,0.02149443]
[1641229385310,0.0001,46520.0,46519.0,0.02149443]
[1641229385510,0.0001,46520.0,46519.0,0.34551643]
[1641229385910,0.0001,46520.0,46519.0,0.21449443]
[1641229386111,0.17293567,46530.0,46519.0,0.21449443]
[1641229386515,0.17293567,46530.0,46527.0,0.02149411]
[1641229386711,0.17293567,46530.0,46527.0,0.11255411]
[1641229386914,0.17293567,46530.0,46529.0,0.02149239]
[1641229387715,0.14043567,46530.0,46529.0,0.02149239]
[1641229387914,0.1931,46530.0,46529.0,0.02149239]
[1641229389118,0.0001,46530.0,46529.0,0.02149239]
[1641229389915,0.0531,46530.0,46529.0,0.20749239]
[1641229390515,0.0531,46530.0,46529.0,0.48601803]
[1641229390715,0.0531,46530.0,46529.0,0.80909003]
[1641229391015,0.0531,46530.0,46529.0,0.99008797]
[1641229391215,0.0531,46530.0,46529.0,1.13042364]
[1641229391517,0.0201,46540.0,46529.0,1.12942364]
[1641229391718,0.0201,46540.0,46532.0,0.18]
[1641229391916,0.0201,46540.0,46538.0,0.02148887]
[1641229392121,0.0201,46540.0,46539.0,0.009794]
[1641229392317,1.31614595,46544.0,46539.0,0.189794]
[1641229392520,1.25114595,46544.0,46543.0,0.18]
[1641229392719,1.69851764,46549.0,46543.0,0.182]
[1641229392935,1.69851764,46549.0,46547.0,0.18]
[1641229393337,1.69851764,46549.0,46548.0,0.46018767]
[1641229393534,1.69851764,46549.0,46548.0,0.23551567]
[1641229393933,1.69851764,46549.0,46548.0,0.42751567]
[1641229394134,1e-08,46550.0,46548.0,0.42751567]
[1641229395136,1e-08,46550.0,46548.0,0.23551567]
[1641229395338,1e-08,46550.0,46548.0,0.14033567]
[1641229396639,1e-08,46550.0,46549.0,0.02148229]
[1641229396841,1e-08,46550.0,46549.0,0.41972129]
[1641229397241,1e-08,46550.0,46549.0,0.74005696]
[1641229397942,1e-08,46550.0,46549.0,0.93205696]
[1641229398344,1e-08,46550.0,46549.0,0.75105696]
[1641229398543,1e-08,46550.0,46549.0,0.93205696]
[1641229399044,1e-08,46550.0,46549.0,0.93105696]
[1641229399244,1e-08,46550.0,46549.0,0.74105696]
[1641229399445,1e-08,46550.0,46549.0,0.56105696]
[1641229399844,1e-08,46550.0,46549.0,0.75405696]
[1641229400043,1e-08,46550.0,46549.0,0.75505696]
[1641229401145,1e-08,46550.0,46549.0,0.56105696]
[1641229401949,1e-08,46550.0,46549.0,0.75405696]
[1641229402347,1e-08,46550.0,46549.0,1.13135749]
[1641229403146,1e-08,46550.0,46549.0,0.93835749]
[1641229403844,1e-08,46550.0,46549.0,1.13435749]
[1641229404046,0.0001,46560.0,46551.0,0.32130148]
[1641229404246,0.0001,46560.0,46552.0,0.18]
[1641229404449,0.0001,46560.0,46555.0,0.18]
[1641229404645,0.0001,46560.0,46559.0,0.001]
[1641229404847,0.0001,46560.0,46559.0,0.09182]
[1641229405649,0.0001,46560.0,46559.0,0.11329649]
[1641229405847,0.0001,46560.0,46559.0,0.30429649]
[1641229406248,0.0001,46560.0,46559.0,0.30329649]
[1641229406449,0.0001,46560.0,46559.0,0.30429649]
[1641229407052,0.189894,46560.0,46559.0,0.30429649]
[1641229407250,0.189894,46560.0,46559.0,0.11229649]
[1641229407451,0.189894,46560.0,46555.0,0.021481]
[1641229407650,0.105434,46560.0,46549.0,0.16181935]
[1641229407849,0.105434,46560.0,46554.0,0.02148161]
[1641229408249,0.09564,46560.0,46558.0,0.02147974]
[1641229408652,0.0001,46560.0,46558.0,0.02147974]
[1641229409149,0.0001,46560.0,46559.0,0.02147823]
[1641229409752,0.0001,46560.0,46554.0,0.14033567]
[1641229409950,0.1801,46560.0,46557.0,0.02147985]
[1641229410849,0.1801,46560.0,46554.0,0.14033567]
[1641229411050,0.0001,46560.0,46554.0,0.14033567]
[1641229411651,0.0001,46560.0,46559.0,0.02147804]
[1641229411849,0.0001,46560.0,46559.0,0.10792804]
[1641229412651,0.0001,46560.0,46559.0,0.10892804]
[1641229412850,0.0001,46560.0,46559.0,0.10792804]
[1641229413453,0.0001,46560.0,46559.0,0.24926371]
[1641229413853,0.0001,46560.0,46559.0,0.44126371]
[1641229414154,0.0001,46560.0,46559.0,0.62225984]
[1641229414353,0.0001,46560.0,46559.0,0.94400684]
[1641229415354,0.0001,46560.0,46559.0,0.75100684]
[1641229415954,0.0001,46560.0,46559.0,0.94400684]
[1641229416154,0.0001,46560.0,46559.0,0.76300684]
[1641229416356,0.0001,46560.0,46559.0,0.94400684]
[1641229416957,0.0001,46560.0,46559.0,0.76400684]
[1641229417155,0.0001,46560.0,46559.0,0.24825984]
[1641229417355,0.0001,46560.0,46559.0,0.24925984]
[1641229417559,0.0001,46560.0,46559.0,0.24825984]
[1641229417956,0.0001,46560.0,46559.0,0.43725984]
[1641229419158,0.0001,46560.0,46559.0,0.24925984]
[1641229419359,0.0001,46560.0,46559.0,0.24825984]
[1641229419958,0.0001,46560.0,46559.0,0.43825984]
[1641229420359,0.0001,46560.0,46559.0,0.43925984]
[1641229420559,0.0001,46560.0,46559.0,0.43825984]
[1641229420958,0.0001,46560.0,46559.0,0.43925984]
[1641229421158,0.0001,46560.0,46559.0,0.24925984]
[1641229421759,0.0001,46560.0,46559.0,0.24825984]
[1641229421960,0.0001,46560.0,46559.0,0.44225984]
[1641229422160,0.0001,46560.0,46559.0,0.76401584]
[1641229422361,0.0001,46560.0,46559.0,0.76301584]
[1641229422563,0.0001,46560.0,46559.0,0.44225984]
[1641229422863,0.0001,46560.0,46559.0,0.44125984]
[1641229423062,0.0001,46560.0,46559.0,0.44225984]
[1641229423263,0.0001,46560.0,46559.0,0.24925984]
[1641229423663,0.0001,46560.0,46559.0,0.57055084]
[1641229423864,0.0001,46560.0,46559.0,1.66344603]
[1641229424064,0.0001,46560.0,46559.0,1.34215503]
[1641229424563,0.0001,46560.0,46559.0,1.32068086]
[1641229424764,0.0001,46560.0,46559.0,1.31968086]
[1641229424962,0.0001,46560.0,46559.0,1.32068086]
[1641229425163,0.0001,46560.0,46559.0,1.12568086]
[1641229425366,0.0001,46560.0,46559.0,1.12468086]
[1641229425566,0.0001,46560.0,46559.0,1.12568086]
[1641229425763,0.0001,46560.0,46559.0,1.14715501]
[1641229425964,0.0001,46560.0,46559.0,1.66325601]
[1641229426164,0.0001,46560.0,46559.0,1.34015501]
[1641229426365,0.0001,46560.0,46559.0,1.31868086]
[1641229426565,0.0001,46560.0,46559.0,1.34015609]
[1641229426766,0.0001,46560.0,46559.0,1.31868086]
[1641229426964,0.0001,46560.0,46559.0,1.34015609]
[1641229427164,0.0001,46560.0,46559.0,1.31768086]
[1641229427366,0.0001,46560.0,46559.0,1.12568086]
[1641229427765,0.0001,46560.0,46559.0,1.14715609]
[1641229427967,0.0001,46560.0,46559.0,1.31668086]
[1641229428165,0.0001,46560.0,46559.0,1.33815609]
[1641229428364,0.0001,46560.0,46559.0,1.31668086]
[1641229428565,0.0001,46560.0,46559.0,1.33815609]
[1641229429166,0.0001,46560.0,46559.0,1.14715609]
[1641229429865,0.0001,46560.0,46559.0,1.33815609]
[1641229430768,0.0001,46560.0,46559.0,1.33715609]
[1641229430967,0.0001,46560.0,46559.0,1.33815609]
[1641229431368,0.0001,46560.0,46559.0,1.46760309]
[1641229431767,0.0001,46560.0,46559.0,1.14715609]
[1641229431967,0.0001,46560.0,46559.0,1.34215609]
[1641229433270,0.0001,46560.0,46559.0,1.34315609]
[1641229433468,0.0001,46560.0,46559.0,1.66416609]
[1641229433670,0.0001,46560.0,46559.0,1.66516609]
[1641229433868,0.0001,46560.0,46559.0,1.14615609]
[1641229434069,0.0001,46560.0,46559.0,1.33815609]
[1641229434871,0.0001,46560.0,46559.0,1.33915609]
[1641229435070,0.0001,46560.0,46559.0,1.33815609]
[1641229435477,0.0001,46560.0,46559.0,1.14615609]
[1641229436074,0.0001,46560.0,46559.0,1.33715609]
[1641229436276,0.0001,46560.0,46559.0,1.33815609]
[1641229437280,0.0001,46560.0,46559.0,1.14715609]
[1641229437679,0.0001,46560.0,46559.0,1.46974609]
[1641229438081,0.0001,46560.0,46559.0,1.66174609]
[1641229438579,0.84133628,46564.0,46559.0,1.66174609]
[1641229438779,1.20190897,46566.0,46559.0,1.66174609]
[1641229438980,1.20190897,46561.0,46560.0,0.18]
[1641229439178,1.20190897,46561.0,46560.0,0.182]
[1641229439380,0.0001,46570.0,46561.0,0.69512021]
[1641229439580,0.0001,46570.0,46569.0,0.001]
[1641229439782,0.0001,46570.0,46564.0,0.18]
[1641229439783,1.21201355,46565.0,46564.0,0.18]
[1641229439982,1.21201355,46565.0,46564.0,0.181]
[1641229440183,1.21201355,46565.0,46564.0,0.181972]
[1641229440384,1.21201355,46565.0,46564.0,0.001972]
[1641229440786,0.0001,46570.0,46564.0,0.181972]
[1641229440989,0.0001,46570.0,46569.0,0.001]
[1641229441385,0.0001,46570.0,46569.0,0.323625]
[1641229441587,0.0001,46570.0,46569.0,0.46296067]
[1641229441792,0.0001,46570.0,46569.0,0.46396067]
[1641229441993,0.0001,46570.0,46569.0,0.65996067]
[1641229442397,0.0001,46570.0,46569.0,0.65896067]
[1641229442796,0.0001,46570.0,46569.0,0.68043001]
[1641229442996,0.0001,46570.0,46569.0,0.68143001]
[1641229443395,0.0001,46570.0,46569.0,0.48443001]
[1641229443597,0.0001,46570.0,46569.0,0.48543001]
[1641229443796,0.0001,46570.0,46569.0,0.16180501]
[1641229443995,0.0001,46570.0,46569.0,0.35580501]
[1641229445198,0.0001,46570.0,46569.0,0.67756401]
[1641229445398,0.0001,46570.0,46569.0,0.48356401]
[1641229445599,0.0001,46570.0,46569.0,0.16180501]
[1641229445999,0.0001,46570.0,46569.0,0.35380501]
[1641229447200,0.0001,46570.0,46569.0,0.16180501]
[1641229447700,0.0001,46570.0,46569.0,0.48585701]
[1641229447902,0.0001,46570.0,46569.0,0.48685701]
[1641229448102,0.0001,46570.0,46569.0,0.36080501]
[1641229448301,0.0001,46570.0,46569.0,0.35980501]
[1641229448501,0.0001,46570.0,46569.0,0.36080501]
[1641229448704,0.0001,46570.0,46569.0,0.35980501]
[1641229448902,0.0001,46570.0,46569.0,0.68471801]
[1641229449101,0.0001,46570.0,46569.0,0.36080501]
[1641229449301,0.0001,46570.0,46569.0,0.35980501]
[1641229449704,0.0001,46570.0,46569.0,0.68405001]
[1641229449904,0.0001,46570.0,46569.0,0.48505001]
[1641229450103,0.0001,46570.0,46569.0,0.35680501]
[1641229450304,0.08631,46570.0,46569.0,0.35680501]
[1641229451505,0.08631,46570.0,46569.0,0.16180501]
[1641229451906,0.08631,46570.0,46569.0,0.16280501]
[1641229452106,0.08631,46570.0,46569.0,0.67902101]
[1641229452310,0.08631,46570.0,46569.0,0.67802101]
[1641229452507,0.08631,46570.0,46569.0,0.35480501]
[1641229453108,0.08631,46570.0,46569.0,0.67733101]
[1641229453310,0.189794,46578.0,46570.0,0.08095282]
[1641229453510,0.189794,46578.0,46575.0,0.14033567]
[1641229454112,0.189794,46578.0,46575.0,0.29833567]
[1641229454510,0.0001,46580.0,46575.0,0.29833567]
[1641229455111,0.18,46576.0,46575.0,0.29833567]
[1641229455310,0.18,46579.0,46575.0,0.29833567]
[1641229455713,0.18,46576.0,46575.0,0.29833567]
[1641229455912,0.18,46576.0,46575.0,0.14033567]
[1641229456112,0.18,46576.0,46575.0,0.16303567]
[1641229456314,0.18,46576.0,46569.0,0.02146934]
[1641229456516,0.18,46570.0,46556.0,0.58137458]
[1641229456714,0.18,46564.0,46556.0,0.58137458]
[1641229457013,0.18,46568.0,46558.0,0.01212043]
[1641229457413,0.18,46565.0,46558.0,0.01212043]
[1641229457613,0.18,46565.0,46564.0,0.81357353]
[1641229457813,0.14033567,46567.0,46564.0,0.81357353]
[1641229458014,0.188,46565.0,46564.0,0.81357353]
[1641229458614,0.188,46565.0,46564.0,0.02147474]
[1641229459215,0.14033567,46567.0,46564.0,0.02147474]
[1641229459417,0.14033567,46567.0,46564.0,0.9919667]
[1641229460014,0.32533567,46567.0,46564.0,0.9909667]
[1641229460214,0.32533567,46567.0,46564.0,0.02147474]
[1641229462017,0.50933567,46567.0,46564.0,0.02147474]
[1641229463221,0.50933567,46567.0,46565.0,0.96965029]
[1641229463519,0.14033567,46567.0,46565.0,0.96965029]
[1641229463920,0.14033567,46567.0,46566.0,0.02147232]
[1641229464122,0.32633567,46567.0,46566.0,0.02147232]
[1641229465220,0.32633567,46567.0,46566.0,0.02247232]
[1641229465421,0.14033567,46567.0,46566.0,0.02247232]
[1641229465622,0.14033567,46567.0,46566.0,0.02147232]
[1641229465821,0.14033567,46567.0,46566.0,0.02247232]
[1641229466022,0.32933567,46567.0,46566.0,0.99208845]
[1641229466822,0.32933567,46567.0,46566.0,0.99108845]
[1641229467522,0.32933567,46567.0,46566.0,0.99208845]
[1641229468021,0.51233567,46567.0,46566.0,1.16608845]
[1641229468222,0.51233567,46567.0,46566.0,1.16708845]
[1641229468624,0.51233567,46567.0,46566.0,1.16608845]
[1641229468826,0.51233567,46567.0,46566.0,1.16708845]
[1641229469227,0.51233567,46567.0,46566.0,1.16608845]
[1641229469426,0.51233567,46567.0,46566.0,1.16708845]
[1641229469627,0.14033567,46567.0,46566.0,0.99108845]
[1641229470026,0.32233567,46567.0,46566.0,1.98320185]
[1641229470526,0.182,46567.0,46566.0,1.98320185]
[1641229471327,0.15012967,46572.0,46566.0,1.80920185]
[1641229471529,0.15012967,46572.0,46566.0,0.99108845]
[1641229472126,0.33812967,46572.0,46566.0,0.99108845]
[1641229472327,0.33812967,46572.0,46567.0,0.96961613]
[1641229472527,0.18,46569.0,46567.0,1.78798613]
[1641229472727,0.25766,46569.0,46568.0,0.001]
[1641229472927,0.25766,46569.0,46567.0,1.78798613]
[1641229473327,1.2117941,46568.0,46567.0,1.55439701]
[1641229473527,1.3917941,46568.0,46567.0,1.55539701]
[1641229473927,1.2117941,46568.0,46567.0,1.55539701]
[1641229474127,1.5747941,46568.0,46567.0,1.63739701]
[1641229474331,1.3947941,46568.0,46567.0,1.63839701]
[1641229474729,0.183,46568.0,46567.0,1.63839701]
[1641229474930,0.183,46568.0,46567.0,0.084]
[1641229475129,0.183,46568.0,46567.0,0.083]
[1641229475329,0.18,46571.0,46567.0,0.001]
[1641229475541,0.18,46571.0,46570.0,0.001]
[1641229475742,0.18,46571.0,46566.0,0.6062532]
[1641229475940,0.18,46571.0,46570.0,0.001]
[1641229476143,0.369,46571.0,46570.0,0.001]
[1641229476641,0.189,46571.0,46566.0,0.6062532]
[1641229476843,0.18,46570.0,46566.0,0.6062532]
[1641229477042,0.189,46571.0,46569.0,0.001]
[1641229477242,0.189,46571.0,46566.0,0.6062532]
[1641229477442,0.15012967,46572.0,46566.0,0.6062532]
[1641229477443,0.18,46568.0,46566.0,0.6062532]
[1641229477645,0.18,46571.0,46567.0,0.001]
[1641229477942,0.18,46571.0,46566.0,0.6062532]
[1641229478143,0.192,46568.0,46566.0,0.6062532]
[1641229478343,0.192,46568.0,46567.0,0.001]
[1641229479145,0.192,46568.0,46566.0,0.6062532]
[1641229479347,0.18,46567.0,46566.0,0.6062532]
[1641229479845,0.32033567,46567.0,46566.0,0.6062532]
[1641229480045,0.51133567,46567.0,46566.0,0.6062532]
[1641229480446,0.51133567,46567.0,46566.0,1.57584931]
[1641229481347,0.32033567,46567.0,46566.0,0.02147232]
[1641229482148,0.51033567,46567.0,46566.0,0.02147232]
[1641229483249,0.33033567,46567.0,46566.0,0.02147232]
[1641229483449,0.32033567,46567.0,46566.0,0.02147232]
[1641229483652,0.14033567,46567.0,46566.0,0.02147232]
[1641229484051,0.33033567,46567.0,46566.0,0.02147232]
[1641229485455,0.14033567,46567.0,46566.0,0.02147232]
[1641229486059,0.33033567,46567.0,46566.0,0.02147232]
[1641229487559,0.14033567,46567.0,46566.0,0.02147232]
[1641229488059,0.33033567,46567.0,46566.0,0.02147232]
[1641229489461,0.14033567,46567.0,46566.0,0.02147232]
[1641229490060,0.33033567,46567.0,46566.0,0.02147232]
[1641229490261,0.33033567,46567.0,46565.0,0.5633532]
[1641229490462,0.51033567,46567.0,46565.0,0.5633532]
[1641229490862,0.39034567,46567.0,46565.0,0.5633532]
[1641229491362,0.20034567,46567.0,46566.0,0.02147535]
[1641229492061,0.39034567,46567.0,46566.0,0.02147535]
[1641229493564,0.20034567,46567.0,46566.0,0.02147535]
[1641229493763,0.14033567,46567.0,46566.0,0.02247535]
[1641229494166,0.33033567,46567.0,46566.0,0.02247535]
[1641229494666,0.33033567,46567.0,46566.0,0.02147535]
[1641229494967,0.33033567,46567.0,46566.0,0.02247535]
[1641229495168,0.33033567,46567.0,46566.0,0.02147535]
[1641229495566,0.14033567,46567.0,46566.0,0.02147535]
[1641229496066,0.33033567,46567.0,46566.0,0.02147535]
[1641229498868,0.39420567,46567.0,46566.0,0.02147535]
[1641229499470,0.20420567,46567.0,46566.0,0.02147535]
[1641229500273,0.39420567,46567.0,46566.0,0.02147535]
[1641229501270,1.60560403,46567.0,46566.0,0.02147535]
[1641229501471,1.41560403,46567.0,46566.0,0.02147535]
[1641229502276,1.59860403,46567.0,46566.0,0.02147535]
[1641229502476,1.59860403,46567.0,46566.0,0.02147368]
[1641229502679,1.45826836,46567.0,46566.0,0.20147368]
[1641229502875,1.45826836,46567.0,46566.0,0.20247368]
[1641229503277,0.24687,46567.0,46566.0,0.20247368]
[1641229503476,0.84791236,46568.0,46566.0,0.20247368]
[1641229503677,0.84791236,46568.0,46566.0,0.20147368]
[1641229503978,1.21139836,46570.0,46567.0,0.02147034]
[1641229504178,1.21139836,46570.0,46569.0,0.181]
[1641229504381,1.21139836,46570.0,46569.0,0.18]
[1641229504579,0.84786599,46570.0,46569.0,0.504513]
[1641229504781,0.84786599,46570.0,46569.0,0.503513]
[1641229504977,0.84786599,46570.0,46569.0,0.504513]
[1641229505380,0.14033567,46581.0,46569.0,0.504513]
[1641229505578,0.0001,46580.0,46577.0,0.001]
[1641229505778,0.0001,46580.0,46577.0,0.20146739]
[1641229505979,0.0001,46580.0,46579.0,0.02246572]
[1641229506179,0.0001,46580.0,46579.0,0.02146572]
[1641229506379,0.0001,46580.0,46579.0,0.34216272]
[1641229506879,1.69197134,46594.0,46581.0,0.42935606]
[1641229507081,2.0971,46595.0,46584.0,0.42932478]
[1641229507280,0.18,46595.0,46584.0,0.42932478]
[1641229507481,0.35513421,46594.0,46590.0,0.02146433]
[1641229508183,0.42298294,46594.0,46590.0,0.02146433]
[1641229508492,0.189,46594.0,46593.0,0.20145569]
[1641229508682,0.189,46594.0,46593.0,0.02145569]
[1641229508882,0.189,46594.0,46593.0,0.34344269]